Cogmind - Beta 15 @@@ ROGUE MODE // 2025.08.29 @ 23:29:25 Player: LaserPappa Result: Destroyed by Y-45 Defender with Beam Rifle Performance ------------- Evolutions (1) 500 Regions Visited (2) 400 Robots Destroyed (22) 110 Value Destroyed (644) 644 Prototype IDs (1) 20 Alien Tech Used (0) 0 Bonus (0) 0 TOTAL SCORE: 1674 Bonus ------- None Cogmind --------- Core Integrity 0/400 Matter 203/300 Energy 246/250 System Corruption 0% Temperature Cool (16) Movement Walking (190) Ox1 Location -9/Materials Parts ------- > --- POWER (2) -------- Ion Engine > --- PROPULSION (2) --- Aluminum Leg > --- UTILITY (3) ------ Visual Processing Unit > --- WEAPON (2) ------- Advanced Beam Cannon Shotgun > --- INVENTORY (5) ---- Aluminum Leg Hover Unit Hover Unit Peak State ------------ > --- POWER ------------ Ion Engine > --- PROPULSION ------- Aluminum Leg Aluminum Leg > --- UTILITY ---------- Visual Processing Unit > --- WEAPON ----------- Advanced Beam Cannon Shotgun > --- INVENTORY -------- Aluminum Leg Hover Unit Hover Unit [Rating: 10] Favorites ----------- Power Light Ion Engine Engine Light Ion Engine Propulsion Light Treads Treads Light Treads Leg Aluminum Leg Utility Sensor Array Device Sensor Array Processor Visual Processing Unit Weapon Shotgun Energy Cannon Advanced Beam Cannon Ballistic Gun Shotgun Ballistic Cannon Light Cannon Launcher Mini Grenade Launcher Build | -11 -10 -9 ------- Run | Yrd Mat Mat Slots Evolved 2 | . . 2 Power 1 | . . 1 Propulsion . | . . . Utility 1 | . . 1 Weapon . | . . . Parts Attached 14 | 3 3 8 Power 3 | 1 . 2 Engine 3 | 1 . 2 Core . | . . . Reactor . | . . . Propulsion 4 | 2 . 2 Treads 2 | 2 . . Leg 2 | . . 2 Wheel . | . . . Hover . | . . . Flight . | . . . Utility 3 | . 2 1 Device 2 | . 2 . Storage . | . . . Processor 1 | . . 1 Hackware . | . . . Protection . | . . . Artifact . | . . . Weapon 4 | . 1 3 Energy Gun . | . . . Energy Cannon 1 | . . 1 Ballistic Gun 1 | . . 1 Ballistic Cannon 1 | . 1 . Launcher 1 | . . 1 Special Weapon . | . . . Impact Weapon . | . . . Slashing Weapon . | . . . Piercing Weapon . | . . . Special Melee Weapon . | . . . Unidentified Prototypes 1 | . . 1 Parts Lost 9 | . . 9 Power 2 | . . 2 Propulsion 3 | . . 3 Utility 2 | . . 2 Weapon 2 | . . 2 Highest Loss Streak 6 | . . 6 To Critical Strikes . | . . . Average Backups 1 | . . 1 Power . | . . . Propulsion . | . . 1 Utility . | . . . Weapon . | . . . Tool/Special . | . . . Unused Backups 3 | . . 3 Power . | . . . Propulsion 3 | . . 3 Utility . | . . . Weapon . | . . . Tool/Special . | . . . Average Slot Usage (%) 58 | . 77 50 Engine 10 | . 14 9 Treads 11 | . 28 4 Leg 6 | . . 9 Device 9 | . 21 5 Processor 3 | . . 5 Energy Cannon 4 | . . 6 Ballistic Gun 4 | . . 6 Ballistic Cannon 5 | . 12 2 Peak Build Rating 10 | 3 6 10 Average Rating 6 | 2 5 7 On Entrance 3 | . 3 6 Naked Turns . | . . . Heaviest Build 12 | 3 8 12 Greatest Support 40 | 40 40 40 Greatest Overweight (x) 1 | . . 1 Average Overweight (x) . | . . . Largest Inventory Capacity 5 | 5 5 5 Average Capacity 5 | 5 5 5 Most Carried 3 | 1 . 3 Average Carried 1 | . . 1 Final Capacity 5 | 5 5 5 Final Carried 3 | . . 3 Class Distribution -------------------- 100% | Mutant Dominant Class ---------------- Mutant | -10/Materials Mutant | -9/Materials Resources | -11 -10 -9 ----------- Run | Yrd Mat Mat Matter Collected 477 | 164 116 197 Remotely . | . . . Salvage Created 512 | . 51 461 Parts 45 | . 3 42 Haulers Intercepted . | . . . Recyclers Shooed . | . . . Parts Field Recycled . | . . . Retrieved Matter . | . . . Parts Self-Destructed . | . . . Prevented . | . . . Kills | -11 -10 -9 ------- Run | Yrd Mat Mat Combat Hostiles Destroyed 19 | . 2 17 Melee 1 | . . 1 Guns 4 | . . 4 Cannons 11 | . 2 9 AOE 3 | . . 3 Classes Destroyed 5 | . 1 4 Builder 2 | . . 2 Watcher 1 | . . 1 Swarmer 4 | . . 4 Grunt 13 | . 2 11 Sentry 2 | . . 2 Best Kill Streak 10 | . 2 10 Combat Bots Only 8 | . 2 8 Max Kills in Single Turn 3 | . 1 3 Gunslinging . | . . . Exploded 1 | . . 1 Melee 1 | . . 1 Uniques/NPCs Destroyed . | . . . Combat | -11 -10 -9 -------- Run | Yrd Mat Mat Hostile Shots Fired 138 | . 6 132 Missed 44 | . 2 42 Hits 94 | . 4 90 Projectile 94 | . 4 90 Critical Strikes 3 | . . 3 Damage Taken 1247 | . 45 1202 Core 402 | . . 402 Absorbed by Shields . | . . . Core Remaining (%) 100 | 100 100 . Volleys Fired 57 | . 9 48 Largest 2 | . 1 2 Hottest 91 | . 30 91 Shots Fired 78 | . 9 69 Gun 21 | . . 21 Cannon 49 | . 9 40 Launcher 8 | . . 8 Special . | . . . Kinetic 49 | . 9 40 Thermal 21 | . . 21 Explosive 8 | . . 8 Electromagnetic . | . . . Robot Hit Streak 13 | . 5 13 Robot Miss Streak 7 | . 3 7 Penetration Max . | . . . Secondary Targets . | . . . Shots Hit Robots 47 | . 5 42 Core Hits 28 | . 2 26 Critical Kills . | . . . Critical Parts Destroyed . | . . . Critical Strikes 2 | . . 2 Blast 2 | . . 2 Melee Attacks . | . . . Impact . | . . . Slashing . | . . . Piercing . | . . . Sneak Attacks . | . . . Combat Hostiles . | . . . Follow-up Attacks . | . . . Damage Inflicted 1087 | . 107 980 Guns 223 | . . 223 Cannons 584 | . 107 477 Explosions 269 | . . 269 Melee . | . . . Ramming 11 | . . 11 Kinetic 604 | . 107 497 Thermal 203 | . . 203 Explosive 269 | . . 269 Electromagnetic . | . . . Impact . | . . . Slashing . | . . . Piercing . | . . . Highest Corruption . | . . . Average Corruption . | . . . Corruption Purged . | . . . Corruption Blocked . | . . . Overload Shots . | . . . Overflow Damage 22 | . . 22 Projectiles 5 | . . 5 Explosions 17 | . . 17 Melee . | . . . Knockbacks 6 | . 3 3 Impact . | . . . Kinetic 5 | . 3 2 Secondary 1 | . . 1 Self-Inflicted Damage 154 | . . 154 Shots 5 | . . 5 Rammed 9 | . . 9 Targets Rammed 10 | . . 10 Kicked . | . . . Crushed 1 | . . 1 Highest Temperature 144 | . 7 144 Average Temperature 44 | . 4 45 Received Heat Transfer 465 | . 24 441 Siege Activations . | . . . Martial Activations . | . . . Shielding Activations . | . . . Robots Disrupted . | . . . Combat Hostiles . | . . . Robots Corrupted . | . . . Combat Hostiles . | . . . Parts Fried . | . . . Impact Corruptions . | . . . Robots Melted . | . . . Combat Hostiles . | . . . Parts Melted . | . . . Heat Transferred 370 | . . 370 Parts Sabotaged . | . . . Parts Stolen . | . . . Parts Stripped . | . . . Power Chain Reactions . | . . . Alert | -11 -10 -9 ------- Run | Yrd Mat Mat Maximum Alert Level 1 | . . 1 Low Security (%) 95 | 100 100 92 Level 1 4 | . . 7 Level 2 . | . . . Level 3 . | . . . Level 4 . | . . . Level 5 . | . . . High Security . | . . . Max Security . | . . . Peak Influence 217 | . 50 217 Initial 5 | . . 5 Average 89 | . 12 127 Influence Increases 522 | . 65 457 Destroy 0b10 Robot/C 380 | . 40 340 Destroy 0b10 Robot/NC 15 | . . 15 Destroy Leader 62 | . 10 52 Disable Machine 30 | . 15 15 Destroy Structure 35 | . . 35 Influence Decreases 403 | . 50 353 Entered New Map 10 | . . 10 Time Decay 303 | . 50 253 Lost Part 90 | . . 90 Squads Dispatched 2 | . 2 . Investigation 1 | . 1 . Extermination . | . . . Reinforcement 1 | . 1 . Assault . | . . . Garrison . | . . . Intercept . | . . . Searches Triggered . | . . . Construction Impeded . | . . . Haulers Reinforced . | . . . Active Scanning Responses . | . . . Cargo Convoy Interrupts . | . . . Stealth | -11 -10 -9 --------- Run | Yrd Mat Mat Distress Signals 2 | . . 2 Communications Jammed . | . . . Distress Signals . | . . . Times Spotted 30 | . 6 24 Peak Tracking Total 8 | . 3 8 Tactical Retreats . | . . . Traps | -11 -10 -9 ------- Run | Yrd Mat Mat Traps Triggered 1 | . 1 . Indirectly . | . . . Trap Hack Attempts . | . . . Triggered . | . . . Disarmed . | . . . Reprogrammed . | . . . Reused . | . . . Traps Extracted . | . . . Installed . | . . . Triggered . | . . . Machines | -11 -10 -9 ---------- Run | Yrd Mat Mat Machines Disabled 2 | . 1 1 Max in Single Turn 1 | . 1 1 Machines Repaired . | . . . Machines Dismantled . | . . . Machines Sabotaged . | . . . Overloaded Fab Kills . | . . . Hacking | -11 -10 -9 --------- Run | Yrd Mat Mat Machines Accessed . | . . . Terminals . | . . . Fabricators . | . . . Repair Stations . | . . . Recycling Units . | . . . Scanalyzers . | . . . Garrison Access . | . . . Total Hacks . | . . . Successful . | . . . Failed . | . . . Catastrophic . | . . . Database Lockouts . | . . . Manual . | . . . Terminals . | . . . Fabricators . | . . . Repair Stations . | . . . Recycling Units . | . . . Scanalyzers . | . . . Garrison Access . | . . . Terminal Hacks . | . . . Fabricator Hacks . | . . . Repair Station Hacks . | . . . Recycling Unit Hacks . | . . . Scanalyzer . | . . . Garrison Access Hacks . | . . . Unauthorized Hacks . | . . . Terminals . | . . . Fabricators . | . . . Repair Stations . | . . . Recycling Units . | . . . Scanalyzers . | . . . Garrison Access . | . . . Data Cores Recovered . | . . . Used . | . . . Hacking Detections . | . . . Full Trace Events . | . . . Feedback Events . | . . . Feedback Blocked . | . . . Robot Schematics Acquired . | . . . Robots Built . | . . . Authchips . | . . . Time . | . . . Total Robot Build Rating . | . . . Part Schematics Acquired . | . . . Parts Built . | . . . Authchips . | . . . Time . | . . . Total Part Build Rating . | . . . Parts Repaired . | . . . Time . | . . . Parts Recycled . | . . . Recycled Matter . | . . . Retrieved Matter . | . . . Retrieved Components . | . . . Parts Scanalyzed . | . . . Part Schematics Acquired . | . . . Parts Damaged . | . . . Bothacking | -11 -10 -9 ------------ Run | Yrd Mat Mat Used RIF Installer . | . . . Robots Hacked . | . . . Non-combat . | . . . Combat . | . . . Robot Hacks Applied . | . . . Relay Couplers Released . | . . . Fabnet Peak Effective % . | . . . Robots Rewired . | . . . Allies Hacked . | . . . Hacks Repelled . | . . . Allies | -11 -10 -9 -------- Run | Yrd Mat Mat Total Allies . | . . . Largest Group . | . . . Highest-Rated Group . | . . . Highest-Rated Ally . | . . . Total Orders . | . . . Ally Attacks . | . . . Total Damage . | . . . Kills . | . . . Allies Corrupted . | . . . Allies Melted . | . . . Intel | -11 -10 -9 ------- Run | Yrd Mat Mat Active Infowar (turns) 622 | . 210 412 Optics 281 | . . 281 Sensors 337 | . 210 127 Structural 316 | . 185 131 Robot Analysis Total . | . . . Derelict Logs Recovered . | . . . Drone Launches . | . . . Drone Recoveries . | . . . Exploration | -11 -10 -9 ------------- Run | Yrd Mat Mat Turns Passed 887 | 40 246 601 Spaces Moved 426 | 30 139 257 Core 17 | 13 . 4 Treads 197 | 17 139 41 Legs 212 | . . 212 Wheels . | . . . Hover . | . . . Flight . | . . . Fastest Speed 50 | 50 160 50 Average Speed 152 | 112 160 152 Slowest Speed 190 | 160 160 190 Overloaded Moves . | . . . Propulsion Burnouts . | . . . Robots Hopped . | . . . Potential Cave-ins . | . . . Cave-ins Triggered . | . . . Exploration Rate (%) 20 | 3 31 28 Regions Visited 2 Branch Regions . Pre-discovered Areas . | . . . Known Exits Taken . | . . . Unknown Exits Taken 2 | 1 1 . Scrap Searched . | . . . Spaces Dug 6 | . . 6 Terrain Destroyed 34 | . . 34 Melee . | . . . Projectile . | . . . AOE 34 | . . 34 Terrain Rammed . | . . . Walls Destroyed . | . . . Machines Disabled . | . . . Actions | -11 -10 -9 --------- Run | Yrd Mat Mat Total 576 | 35 152 389 Wait 66 | 2 2 62 Move 424 | 29 138 257 Hop . | . . . Pick Up 5 | 1 . 4 Fast Attach 12 | 2 3 7 Attach 2 | 1 . 1 Detach . | . . . Swap . | . . . Drop . | . . . Fire 57 | . 9 48 Melee . | . . . Ram . | . . . Kick . | . . . Crush 10 | . . 10 Escape Stasis . | . . . Rewire . | . . . Trap . | . . . Miscellaneous . | . . . Route ------- -11/Scrapyard -10/Materials -9/Materials History --------- Turn | Location | Event 16 | -11/Scrapyard | Discovered new exit (range 13) 41 | -11/Scrapyard | Entered Materials 257 | -10/Materials | Discovered new exit (range 12) 287 | -10/Materials | Entered another Materials area 287 | -9/Materials | Evolved 2 slots: Power x1, Utility x1 313 | -9/Materials | Build established: Mutant 418 | -9/Materials | Core integrity fell below 50% 428 | -9/Materials | Core integrity fell below 20% 448 | -9/Materials | Destroyed 8 combat bots 449 | -9/Materials | Lost 6 parts (1p2n2u1w) 888 | -9/Materials | Destroyed by Y-45 Defender with Beam Rifle Last Messages --------------- S-10 Pest destroyed. Aluminum Leg destroyed. K-01 Serf collects debris. S-10 Pest destroyed. Destroyed Flight Unit. K-01 Serf collects debris. S-10 Pest destroyed. K-01 Serf collects debris. S-10 Pest destroyed. Acquired 19 matter. K-01 Serf collects debris. Acquired 16 matter. Acquired 7 matter. K-01 Serf collects debris. R-06 Scavenger collects Flight Unit. R-06 Scavenger collects Lgt. Assault Rifle. R-06 Scavenger collects Lgt. Ion Engine. Connecting with Terminal... Current location identified: Materials Connecting with Terminal... Map ----- +----------------------------------------------------+ | ???????????????????# #??#### #????????????????? | | ???????????????????# #??"" #?#????????????????? | | ???????????????????# #?"Y" #??????????????????? | | ???????????????????# #? #??????????????????? | | ???????????????????# # #??????????????????? | | ???????????????????# # #??????????????????? | | ???????????????????# + #??????????????????? | | ???????????????????# #######??????????????????? | | ???????????????????# #???????????????????? | | ??????????????######+##+# #???????????????????? | | ??????????????# # #???????????????????? | | ??????????????# """"" [# #???????????????????? | | ??????????????# ""T"" # #???????????????????? | | ??????????????# # #???????????????????? | | ??????????????########### #???????????????????? | | ????????????????????# #???????????????????? | | ????????????????????# #???????????????????? | | ????????????????????# T #???????????????????? | | ????????????????????# #???????????????????? | | ????????????????????# w #???????????????????? | | ????????????????????## ##???????????????????? | | ?????????????????????# #????????????????????? | | ?????????????????????# #????????????????????? | | ?????????????????????# #????????????????????? | | ?????????????????????# ### ### #????????? | | ?????????????????????# @ #????????? | | ?????????????????????+ Y #????????? | | ?????????????????????# #????????? | | ?????????????????????########+## #????????? | | ?????????????????????????????????? ##????????? | | ????????????????????????????????????#?????????? | | ??????????????????????????????????????????????? | | ??????????????????????????????????????????????? | | ??????????????????????????????????????????????? | | ??????????????????????????????????????????????? | | ??????????????????????????????????????????????? | | ??????????????????????????????????????????????? | | ??????????????????????????????????????????????? | | ??????????????????????????????????????????????? | | | | | | | | | | | | | | | | | | | | | | | +----------------------------------------------------+ Best States ------------- Heat Dissipation 28 Energy Generation 10 Energy Capacity 250 Matter Stores 300 Matter Capacity 300 Sight Range 18 Robot Scan Range 14 Terrain Scan Density 10 Evasion (%) 55 Recoil Reduction 2 Item Schematics ----------------- None Robot Schematics ------------------ None Fabricated ------------ Nothing Repaired ---------- Nothing Alien Tech Used ----------------- None Achievements -------------- None Challenges ------------ None Game ------ Seed ProcessingCouplerStorage Manual? 0 Play Time 00:17:35 Cumulative 8.2 hours Start 2025.08.29 @ 23:11:15 End 2025.08.29 @ 23:29:25 Sessions 1 Manual Loads 0 Difficulty Rogue Special Mode None Game No. 13 Rogue 6 Adventurer 0 Explorer 7 Win Type - Total 0 Types 0/0/0/0/0/0/0/0/0/0 Lore% 6 Gallery% 8 Achievement% 9 Wizard Run 0 Options --------- Layout 0 ASCII 1 Keyboard 0 Movement Numpad Keybinds 0 Fullscreen 2 Font 24/Smallcaps Map View 76x50 Zoom Use 0% Tactical HUD 0 Map Filters NONE Filters NONE Steam 1 RUN: 4c0e8b5c-72e4-459c-96e6-6e1a15d43fa1